bitfinex/quotes_BTCUSD_20241205
["timestamp","ask_amount","ask_price","bid_price","bid_amount"]
[1733429022370,10.009,98499.0,98498.0,0.09985292]
[1733429022847,8.253,98499.0,98498.0,0.17255292]
[1733429023076,5.8682,98499.0,98498.0,0.09985292]
[1733429023294,5.8772,98499.0,98498.0,0.10085292]
[1733429023514,5.8752,98499.0,98498.0,0.10085292]
[1733429023718,5.8662,98499.0,98498.0,0.09985292]
[1733429023922,5.8682,98499.0,98498.0,0.11385292]
[1733429024134,5.8682,98499.0,98498.0,0.13685292]
[1733429024353,5.8612,98499.0,98498.0,0.09985292]
[1733429024623,5.8382,98499.0,98498.0,0.12785292]
[1733429024842,5.8392,98499.0,98498.0,0.11085292]
[1733429025060,5.8392,98499.0,98498.0,0.10585292]
[1733429025061,5.8382,98499.0,98498.0,0.10585292]
[1733429025515,5.8382,98499.0,98498.0,0.10485292]
[1733429026008,5.8142,98499.0,98498.0,0.10485292]
[1733429026239,5.8142,98499.0,98498.0,0.10885292]
[1733429026460,5.8142,98499.0,98498.0,0.10485292]
[1733429026682,5.8132,98499.0,98498.0,0.09885292]
[1733429026914,5.8132,98499.0,98498.0,0.17565531]
[1733429026915,5.8142,98499.0,98498.0,0.17565531]
[1733429027170,5.8142,98499.0,98498.0,0.17965531]
[1733429027171,4.1605,98499.0,98498.0,0.17965531]
[1733429027389,1.9098,98499.0,98498.0,0.17365531]
[1733429027597,0.0475314,98550.0,98506.0,0.406066]
[1733429027811,0.0475314,98550.0,98533.0,0.09967605]
[1733429028031,0.0475314,98550.0,98534.0,0.023]
[1733429028244,0.0017422,98560.0,98533.0,0.09967605]
[1733429028245,0.0017422,98560.0,98545.0,0.023]
[1733429028530,0.0017422,98560.0,98547.0,0.09967605]
[1733429028953,0.1,98548.0,98545.0,0.023]
[1733429029162,0.00233096,98560.0,98546.0,0.09967605]
[1733429029387,0.08605129,98594.0,98558.0,0.09967605]
[1733429029646,0.0017396,98610.0,98548.0,0.02429]
[1733429029647,0.0017396,98610.0,98579.0,0.09967605]
[1733429029889,0.0774496,98610.0,98579.0,0.09967605]
[1733429030112,0.07571,98600.0,98588.0,0.09967605]
[1733429030345,0.00101425,98599.0,98551.0,0.00101434]
[1733429030576,0.0785,98598.0,98589.0,0.09967605]
[1733429030798,0.00101425,98597.0,98589.0,0.09967605]
[1733429031026,0.0785,98598.0,98589.0,0.09967605]
[1733429031468,0.00101425,98597.0,98589.0,0.09967605]
[1733429031881,0.00101425,98597.0,98590.0,0.023]
[1733429032120,0.00101425,98597.0,98591.0,0.09967605]
[1733429032360,0.00101425,98597.0,98593.0,0.023]
[1733429032590,0.00101425,98597.0,98553.0,0.00101432]
[1733429032853,0.07571,98581.0,98561.0,0.09967605]
[1733429033085,0.07571,98581.0,98529.0,0.02429]
[1733429033086,0.0785,98636.0,98586.0,0.1]
[1733429033327,0.0785,98636.0,98608.0,0.30249905]
[1733429033544,0.0628694,98642.0,98608.0,0.30249905]
[1733429033545,0.0148694,98642.0,98609.0,0.00101385]
[1733429033757,0.07571,98638.0,98608.0,0.09985271]
[1733429034003,0.0148694,98642.0,98608.0,0.09985271]
[1733429034004,0.07571,98626.0,98608.0,0.09985271]
[1733429034228,0.00101425,98625.0,98608.0,0.09985271]
[1733429034458,0.001,98609.0,98608.0,0.09985271]
[1733429035221,0.001,98609.0,98608.0,0.10983798]
[1733429035448,0.0037396,98610.0,98608.0,0.13283798]
[1733429035683,0.00101425,98658.0,98615.0,0.1]
[1733429035902,0.0806,98665.0,98641.0,0.09967605]
[1733429036135,0.00174,98680.0,98641.0,0.10068959]
[1733429036381,0.00174,98680.0,98647.0,0.1]
[1733429036602,0.07571,98679.0,98659.0,0.09967605]
[1733429036825,0.07571,98672.0,98659.0,0.09967605]
[1733429037031,0.0484,98669.0,98659.0,0.09967605]
[1733429037279,0.07672425,98668.0,98659.0,0.09967605]
[1733429037542,0.07672425,98668.0,98608.0,0.00998527]
[1733429037543,0.07571,98655.0,98641.0,0.006]
[1733429037743,0.00232142,98660.0,98647.0,0.001]
[1733429037744,0.07571,98648.0,98647.0,0.001]
[1733429037957,0.07571,98642.0,98585.0,0.20287]
[1733429038173,0.07571,98627.0,98605.0,0.09967605]
[1733429038374,0.07571,98627.0,98571.0,0.02429]
[1733429038375,0.00101425,98626.0,98607.0,0.09967605]
[1733429038613,0.00101425,98626.0,98614.0,0.09967605]
[1733429038834,0.00101425,98626.0,98596.0,0.00101403]
[1733429038835,0.07672425,98637.0,98620.0,0.09967605]
[1733429039050,0.07571,98619.0,98615.0,0.09967605]
[1733429039262,0.32023878,98630.0,98584.0,0.20287]
[1733429039263,0.39594878,98630.0,98616.0,0.09967605]
[1733429039475,0.07571,98629.0,98616.0,0.09967605]
[1733429039692,0.07151,98639.0,98616.0,0.09967605]
[1733429039916,0.27443878,98630.0,98616.0,0.09967605]
[1733429040365,0.27443878,98630.0,98583.0,0.202873]
[1733429040366,0.202813,98613.0,98605.0,0.001]
[1733429040576,0.202789,98625.0,98606.0,0.09967605]
[1733429040782,0.97525073,98642.0,98605.0,0.001]
[1733429040783,0.87199855,98642.0,98605.0,0.001]
[1733429040992,0.202801,98619.0,98605.0,0.10067605]
[1733429041218,0.001,98630.0,98605.0,0.10067605]
[1733429041479,0.1,98662.0,98606.0,0.19967605]
[1733429041685,0.202714,98661.0,98616.0,0.001]
[1733429041893,0.202753,98642.0,98617.0,0.09967605]
[1733429042097,0.2215,98668.0,98617.0,0.09967605]
[1733429042521,0.09967605,98659.0,98605.0,0.0001766]
[1733429042763,0.002815,98612.0,98606.0,0.09967605]
[1733429043037,0.0456,98614.0,98606.0,0.09967605]
[1733429043253,0.641,98658.0,98606.0,0.09967605]
[1733429043254,0.0017324,98700.0,98628.0,0.1]
[1733429043466,0.0017324,98700.0,98606.0,0.001]
[1733429043467,0.0778,98660.0,98630.0,0.09967605]
[1733429043916,0.0017304,98640.0,98630.0,0.09967605]
[1733429044982,0.0017304,98640.0,98630.0,0.002]
[1733429045211,0.0017304,98640.0,98605.0,0.0001766]
[1733429045212,0.202761,98638.0,98605.0,0.0001766]
[1733429045433,0.0779,98639.0,98605.0,0.0001766]
[1733429045434,0.15,98630.0,98606.0,0.19967605]
[1733429045655,0.15,98635.0,98606.0,0.19967605]
[1733429045876,0.202774,98632.0,98606.0,0.19967605]
[1733429046319,0.15,98633.0,98606.0,0.09967605]
[1733429046557,0.202791,98624.0,98606.0,0.09967605]
[1733429047019,0.2028,98620.0,98606.0,0.09967605]
[1733429047284,0.15,98631.0,98606.0,0.001]
[1733429047515,0.0471,98634.0,98606.0,0.001]
[1733429047516,0.15,98607.0,98606.0,0.001]
[1733429047741,0.202824,98608.0,98605.0,0.0001766]
[1733429047742,0.352827,98606.0,98605.0,0.0001766]
[1733429047983,0.15,98606.0,98605.0,0.0001766]
[1733429048418,0.2278,98605.0,98560.0,0.1]
[1733429048630,0.15,98584.0,98561.0,0.09967605]
[1733429048856,0.202885,98578.0,98561.0,0.09967605]
[1733429049071,0.15,98584.0,98561.0,0.09967605]
[1733429049289,0.202911,98566.0,98561.0,0.09967605]
[1733429049513,0.15,98567.0,98561.0,0.09967605]
[1733429049743,0.202909,98566.0,98561.0,0.09967605]
[1733429049973,0.202909,98566.0,98554.0,0.00058876]
[1733429049974,0.15,98565.0,98554.0,0.00058876]
[1733429050195,0.0813,98564.0,98555.0,0.09967605]
[1733429050853,0.0813,98564.0,98561.0,0.001]
[1733429051065,0.15,98562.0,98561.0,0.001]
[1733429051273,0.1436,98562.0,98561.0,0.001]
[1733429051486,0.20292,98561.0,98555.0,0.09967605]
[1733429051777,0.20292,98561.0,98554.0,0.00058876]
[1733429051778,0.202931,98556.0,98554.0,0.00058876]
[1733429052029,0.20292,98561.0,98554.0,0.00058876]
[1733429052030,0.20292,98561.0,98555.0,0.002]
[1733429052245,0.405841,98561.0,98555.0,0.002]
[1733429052458,0.20292,98561.0,98555.0,0.002]
[1733429052883,0.405841,98561.0,98555.0,0.002]
[1733429053132,0.405841,98561.0,98486.0,0.1]
[1733429053133,0.202926,98558.0,98556.0,0.0015]
[1733429053346,0.202926,98558.0,98446.0,0.046]
[1733429053347,0.0805,98544.0,98479.0,0.08617818]
[1733429053562,0.0805,98544.0,98440.0,0.0008657]
[1733429053563,0.01382182,98528.0,98480.0,0.09967605]
[1733429053774,0.15,98526.0,98480.0,0.09967605]
[1733429054005,0.15,98526.0,98494.0,0.08617818]
[1733429054212,0.0805,98531.0,98515.0,0.08617818]
[1733429054423,0.009,98558.0,98556.0,0.001]
[1733429054636,0.009,98558.0,98524.0,0.18617818]
[1733429054865,0.005,98544.0,98524.0,0.1]
[1733429055083,0.202938,98552.0,98524.0,0.1]
[1733429055297,0.0805,98553.0,98528.0,0.1]
[1733429055503,0.00058793,98552.0,98548.0,0.09967605]
[1733429055730,0.00058793,98552.0,98551.0,0.09967605]
[1733429055963,0.00058793,98552.0,98551.0,0.3098689]
[1733429056196,0.00058793,98552.0,98551.0,0.28585423]
[1733429056431,0.00058793,98552.0,98551.0,0.09967605]
[1733429056680,0.00058793,98552.0,98505.0,0.077]
[1733429056681,0.00058793,98552.0,98536.0,0.18617818]
[1733429056931,0.00058793,98552.0,98551.0,0.18585423]
[1733429057182,0.00158793,98552.0,98551.0,0.29285423]
[1733429057435,0.202879,98581.0,98552.0,0.18617818]
[1733429057688,0.202886,98578.0,98553.0,0.09967605]
[1733429057952,0.202888,98577.0,98553.0,0.09967605]
[1733429058204,0.202899,98571.0,98553.0,0.09967605]
[1733429058431,0.15,98564.0,98551.0,0.00258793]
[1733429058650,0.0465,98575.0,98551.0,0.00258793]
[1733429058651,0.15,98554.0,98551.0,0.00258793]
[1733429058866,0.15,98554.0,98536.0,0.5]
[1733429058867,0.01382182,98549.0,98536.0,0.4219]
[1733429059079,0.352969,98537.0,98536.0,0.32190297]
[1733429059318,0.45264505,98537.0,98536.0,0.30140297]
[1733429059531,0.46646687,98537.0,98536.0,0.22330297]
[1733429059740,0.15,98507.0,98479.0,0.08617818]
[1733429059945,0.15,98507.0,98480.0,0.09967605]
[1733429060156,0.202973,98535.0,98462.0,0.0491]
[1733429060157,0.2215,98523.0,98487.0,0.08617818]
[1733429060379,0.0465,98552.0,98462.0,0.0491]
[1733429060380,0.15,98534.0,98504.0,0.09967605]
[1733429060625,0.15,98534.0,98488.0,0.09967605]
[1733429060626,0.203022,98512.0,98488.0,0.09967605]
[1733429060832,0.02,98528.0,98488.0,0.09967605]
[1733429061068,0.09967605,98527.0,98488.0,0.09985271]
[1733429061274,0.202994,98525.0,98488.0,0.09985271]
[1733429061491,0.203037,98505.0,98488.0,0.09985271]
[1733429061940,0.20299,98527.0,98490.0,0.08617818]
[1733429062149,0.2215,98539.0,98507.0,0.08617818]
[1733429062383,0.6066746,98538.0,98490.0,0.08617818]
[1733429062614,0.6066746,98538.0,98488.0,0.00017666]
[1733429062615,0.15,98526.0,98508.0,0.09967605]
[1733429062840,0.15,98537.0,98491.0,0.19967605]
[1733429063298,0.15,98516.0,98491.0,0.19967605]
[1733429063502,0.15,98516.0,98491.0,0.09967605]
[1733429064135,0.15,98516.0,98491.0,0.10067605]
[1733429064374,0.15,98516.0,98491.0,0.09967605]
[1733429064837,0.159,98516.0,98491.0,0.10067605]
[1733429065067,0.164,98516.0,98491.0,0.10067605]
[1733429065288,0.164,98516.0,98491.0,0.001]
[1733429065289,0.15,98493.0,98491.0,0.001]
[1733429065512,0.353062,98492.0,98491.0,0.001]
[1733429065736,0.15,98492.0,98491.0,0.001]
[1733429065969,0.15,98500.0,98491.0,0.001]
[1733429066238,0.15,98500.0,98492.0,0.09967605]
[1733429066891,0.20301,98518.0,98492.0,0.09967605]
[1733429067100,0.406,98522.0,98492.0,0.18585423]
[1733429067317,0.0761,98492.0,98450.0,0.0008652]
[1733429067534,2.29785065,98491.0,98427.0,0.08415115]
[1733429067749,0.203135,98457.0,98450.0,0.00017687]
[1733429067962,0.15,98468.0,98450.0,0.00017687]
[1733429068188,0.353146,98451.0,98450.0,0.00017687]
[1733429068490,0.353146,98451.0,98390.0,0.0008662]
[1733429068491,0.37147605,98451.0,98399.0,0.08415115]
[1733429068715,0.37147605,98451.0,98364.0,0.01]
[1733429068716,0.203237,98407.0,98406.0,0.00058803]
[1733429068937,2.65108765,98407.0,98406.0,0.00058803]
[1733429069163,2.01008765,98407.0,98406.0,0.00058803]
[1733429069378,1.9104116,98407.0,98406.0,0.00058803]
[1733429069586,1.9104116,98407.0,98391.0,0.00031145]
[1733429069587,0.203268,98392.0,98391.0,0.00031145]
[1733429069795,0.353268,98392.0,98391.0,0.00031145]
[1733429070007,0.15,98391.0,98364.0,0.01]
[1733429070223,0.09967605,98390.0,98364.0,0.01]
[1733429070428,0.203296,98379.0,98364.0,0.01]
[1733429070644,0.02599437,98390.0,98365.0,0.09967605]
[1733429070858,0.15,98391.0,98365.0,0.09967605]
[1733429071343,1.00376177,98407.0,98390.0,0.0008654]
[1733429071344,0.99476177,98407.0,98390.0,0.0008654]
[1733429071548,9.9991346,98379.0,98378.0,0.1]
[1733429071802,9.9991346,98379.0,98378.0,0.09967605]
[1733429072028,10.2024306,98379.0,98364.0,0.01]
[1733429072242,0.15,98378.0,98364.0,0.01]
[1733429072455,0.203317,98369.0,98364.0,0.01]
[1733429072665,0.15,98368.0,98364.0,0.01]
[1733429072873,0.15,98366.0,98364.0,0.01]
[1733429073085,0.353324,98365.0,98364.0,0.01]
[1733429073290,0.45300005,98365.0,98364.0,0.01]
[1733429073735,0.45300005,98365.0,98364.0,0.00996]
[1733429073736,0.3539108,98365.0,98364.0,0.00996]
[1733429073962,0.1505868,98365.0,98364.0,0.00996]
[1733429074187,1.1702614,98365.0,98364.0,0.00996]
[1733429074399,1.58593745,98365.0,98364.0,0.00996]
[1733429075233,1.4872614,98365.0,98364.0,0.00996]
[1733429075442,0.0015868,98365.0,98364.0,0.00996]
[1733429076265,0.1505868,98365.0,98364.0,0.00996]
[1733429076676,0.1505868,98365.0,98353.0,0.0216]
[1733429076677,0.203347,98354.0,98353.0,0.0216]
[1733429076875,0.353347,98354.0,98353.0,0.0216]
[1733429077098,0.09634572,98345.0,98340.0,0.005]
[1733429077302,0.15,98331.0,98330.0,0.00031145]
[1733429077498,0.4519559,98331.0,98330.0,0.00031145]
[1733429077925,0.4519559,98331.0,98327.0,0.00232947]
[1733429078133,0.35228185,98331.0,98327.0,0.00232947]
[1733429078353,0.2215,98336.0,98327.0,0.00232947]
[1733429078856,0.2215,98336.0,98308.0,0.1]
[1733429078857,0.31120611,98335.0,98308.0,0.1]
[1733429079069,0.31120611,98335.0,98331.0,0.1]
[1733429079294,0.31120611,98335.0,98334.0,0.10365428]
[1733429079510,0.31120611,98335.0,98334.0,0.20333033]
[1733429079760,0.31120611,98335.0,98334.0,0.19967605]
[1733429079999,0.32020611,98335.0,98334.0,0.19967605]
[1733429080240,0.009,98335.0,98334.0,0.19967605]
[1733429080464,0.00058644,98336.0,98326.0,0.1]
[1733429080712,0.004,98335.0,98327.0,0.09967605]
[1733429080928,0.00058644,98336.0,98330.0,0.00365428]
[1733429081146,0.004,98335.0,98334.0,0.1]
[1733429081360,0.004,98335.0,98334.0,0.19967605]
[1733429081628,0.00058644,98336.0,98335.0,0.00365428]
[1733429081840,0.00158644,98336.0,98335.0,0.20333033]
[1733429082283,0.00058644,98336.0,98335.0,0.20333033]
[1733429082801,0.0824,98423.0,98377.0,0.10365428]
[1733429083036,0.203231,98410.0,98377.0,0.19967605]
[1733429083290,0.203266,98393.0,98361.0,0.049]
[1733429083536,0.203266,98393.0,98315.0,0.1]
[1733429083537,0.203301,98376.0,98354.0,0.1]
[1733429083763,0.203292,98381.0,98355.0,0.09967605]
[1733429083978,0.203297,98378.0,98355.0,0.09967605]
[1733429084190,0.009,98378.0,98355.0,0.09985149]
[1733429084429,0.009,98378.0,98363.0,0.00365428]
[1733429084650,0.009,98378.0,98364.0,0.19967605]
[1733429084871,0.009,98378.0,98364.0,0.01833034]
[1733429085095,0.018,98378.0,98365.0,0.09967605]
[1733429085326,0.018,98378.0,98366.0,0.09967605]
[1733429085327,0.01817599,98378.0,98366.0,0.09967605]
[1733429085541,0.00017599,98378.0,98366.0,0.09967605]
[1733429085771,0.00017599,98378.0,98338.0,0.00101662]
[1733429085772,0.00119261,98378.0,98338.0,0.023]
[1733429086001,0.009,98376.0,98341.0,0.01402393]
[1733429086273,0.00101662,98375.0,98341.0,0.01402393]
[1733429086824,0.00101662,98375.0,98342.0,0.00101672]
[1733429087049,0.01617599,98378.0,98356.0,0.09967605]
[1733429087272,0.00017599,98378.0,98359.0,0.09967605]
[1733429087501,0.00017599,98378.0,98377.0,0.09967605]
[1733429087723,7.42431059,98379.0,98378.0,0.426297]
[1733429087954,6.50071059,98379.0,98378.0,0.43917305]
[1733429088173,6.35701059,98379.0,98378.0,0.53917305]
[1733429088435,6.16541059,98379.0,98378.0,0.53913305]
[1733429088691,6.16541059,98379.0,98378.0,0.68913305]
[1733429088692,5.91318508,98379.0,98378.0,0.68913305]
[1733429088946,5.91318508,98379.0,98378.0,0.32589305]
[1733429088947,5.81738508,98379.0,98378.0,0.32589305]
[1733429089166,5.81738508,98379.0,98378.0,0.09967605]
[1733429089419,6.81938509,98379.0,98377.0,0.00017599]
[1733429089674,6.81838509,98379.0,98377.0,0.00017599]
[1733429089919,6.81938509,98379.0,98377.0,0.00017599]
[1733429090142,0.00101662,98378.0,98377.0,0.00017599]
[1733429090831,0.00101662,98378.0,98340.0,0.27440402]
[1733429091069,0.00119336,98378.0,98347.0,0.09967605]
[1733429091348,0.00119336,98378.0,98348.0,0.00101656]
[1733429091591,6.82338509,98379.0,98378.0,0.00080664]
[1733429091828,6.82338509,98379.0,98378.0,0.00150195]
[1733429091829,6.82438509,98379.0,98378.0,0.00150195]
[1733429092259,6.81738509,98379.0,98349.0,0.09967605]
[1733429092478,0.001,98378.0,98349.0,0.09967605]
[1733429092930,0.001,98378.0,98350.0,0.09967605]
[1733429093148,0.001,98378.0,98351.0,0.00101658]
[1733429093149,0.00117674,98378.0,98351.0,0.00101658]
[1733429093359,0.00117674,98378.0,98352.0,0.09967605]
[1733429093581,0.00117674,98378.0,98353.0,0.20436558]
[1733429093804,0.00817674,98378.0,98360.0,0.27440402]
[1733429094159,0.00717674,98378.0,98361.0,0.12369247]
[1733429094167,0.00717674,98378.0,98361.0,0.09967605]
[1733429094367,0.00101668,98377.0,98340.0,0.27440402]
[1733429094581,0.00101668,98377.0,98362.0,0.01996238]
[1733429094790,0.00101668,98377.0,98341.0,0.10069263]
[1733429095016,0.00101668,98377.0,98341.0,0.08761473]
[1733429095220,0.00101668,98377.0,98360.0,0.002]
[1733429095640,0.09967605,98376.0,98342.0,0.09967605]
[1733429095855,0.0833,98374.0,98330.0,0.27440402]
[1733429096063,0.10094705,98373.0,98331.0,0.09967605]
[1733429096297,0.0833,98374.0,98331.0,0.09967605]
[1733429096495,0.10094705,98372.0,98332.0,0.203392]
[1733429096699,0.10094705,98372.0,98333.0,0.10018473]
[1733429097117,0.00127097,98376.0,98350.0,0.27440402]
[1733429097313,0.00127097,98376.0,98325.0,0.1]
[1733429097314,0.00127071,98375.0,98331.0,0.023]
[1733429097518,0.00527082,98374.0,98334.0,0.203388]
[1733429097718,0.00127082,98374.0,98344.0,0.203367]
[1733429097931,0.001,98372.0,98345.0,0.10018443]
[1733429098896,0.001,98372.0,98346.0,0.203363]
[1733429099147,0.001,98372.0,98347.0,0.09967605]
[1733429099327,0.001,98372.0,98350.0,0.27440402]
[1733429099490,0.00017674,98378.0,98357.0,0.203339]
[1733429099718,0.00017674,98378.0,98353.0,0.203348]
[1733429099912,0.001,98374.0,98355.0,0.203345]
[1733429100120,0.001,98374.0,98353.0,0.203348]
[1733429100121,0.00017674,98378.0,98353.0,0.203348]
[1733429100326,0.00144745,98378.0,98353.0,0.30302405]
[1733429100533,0.001,98372.0,98353.0,0.30302405]
[1733429100741,0.003,98372.0,98352.0,0.203349]
[1733429100945,0.003,98372.0,98360.0,0.27440402]
[1733429101158,0.00017674,98378.0,98377.0,0.123]
[1733429101379,0.00017674,98378.0,98377.0,0.30297505]
[1733429101592,0.00017674,98378.0,98371.0,0.203311]
[1733429101803,0.00017674,98378.0,98377.0,0.203299]
[1733429102011,0.00017674,98378.0,98377.0,0.09967605]
[1733429102237,0.00017674,98378.0,98377.0,0.12267605]
[1733429102443,0.00017674,98378.0,98377.0,0.47267605]
[1733429102687,5.81738508,98379.0,98377.0,0.47267605]
[1733429102688,4.42927182,98379.0,98378.0,0.576297]
[1733429102897,4.38861182,98379.0,98378.0,0.67597305]
[1733429103122,4.38861182,98379.0,98378.0,0.32597305]
[1733429103527,4.11796066,98379.0,98378.0,0.67597305]
[1733429103744,3.97975548,98379.0,98378.0,0.77389227]
[1733429103947,3.91421853,98379.0,98378.0,0.77389227]
[1733429104175,3.80538113,98379.0,98378.0,0.77389227]
[1733429104382,3.48328081,98379.0,98378.0,0.77389227]
[1733429104609,1.86510399,98379.0,98378.0,0.77689227]
[1733429104815,0.80165658,98379.0,98378.0,0.70591081]
[1733429105039,0.33422392,98379.0,98378.0,0.70591081]
[1733429105277,0.0017346,98480.0,98474.0,0.203097]
[1733429105798,0.0017346,98480.0,98471.0,0.203105]
[1733429106012,0.0017346,98480.0,98477.0,0.203093]
[1733429106215,0.0017346,98480.0,98461.0,0.15]
[1733429106216,0.0017346,98480.0,98464.0,0.203118]
[1733429106422,0.0017346,98480.0,98478.0,0.20309]
[1733429106638,0.00232467,98480.0,98446.0,0.1]
[1733429107032,0.00232467,98480.0,98473.0,0.203099]
[1733429107241,0.00232467,98480.0,98478.0,0.203089]
[1733429107448,0.00332467,98480.0,98477.0,0.006]
[1733429107659,0.22157605,98479.0,98478.0,0.001]
[1733429107895,0.24396612,98479.0,98478.0,0.001]
[1733429108122,0.1219,98479.0,98478.0,0.001]
[1733429108337,0.00232467,98480.0,98478.0,0.001]
[1733429108553,0.10180072,98480.0,98462.0,0.203123]
[1733429108753,0.11112542,98479.0,98447.0,0.203154]
[1733429108959,0.11112542,98479.0,98426.0,0.1]
[1733429108960,0.11112542,98479.0,98445.0,0.203157]
[1733429109172,0.09967605,98479.0,98446.0,0.10767605]
[1733429109369,0.00312467,98480.0,98476.0,0.203093]
[1733429109624,0.00212467,98480.0,98479.0,0.1]
[1733429109838,0.00212467,98480.0,98479.0,0.19967605]
[1733429110042,0.00212467,98480.0,98479.0,0.09967605]
[1733429110251,0.00312467,98480.0,98479.0,0.09967605]
[1733429110705,0.00212467,98480.0,98479.0,0.09967605]
[1733429110913,0.00212467,98480.0,98479.0,0.10867605]
[1733429111130,0.00412467,98480.0,98479.0,0.11767605]
[1733429111334,0.004061,98556.0,98529.0,0.1]
[1733429111553,0.004061,98556.0,98509.0,0.203026]
[1733429111554,0.00302063,98551.0,98536.0,0.1]
[1733429111757,0.02071854,98547.0,98536.0,0.1]
[1733429111992,0.10044042,98546.0,98536.0,0.1]
[1733429112222,0.00076437,98546.0,98545.0,0.1]
[1733429112432,0.00017716,98565.0,98564.0,0.1]
[1733429113297,0.00017716,98565.0,98564.0,0.10101437]
[1733429113924,0.00017716,98565.0,98564.0,0.22888826]
[1733429114155,0.00017716,98565.0,98564.0,0.22787389]
[1733429114379,0.00117716,98565.0,98564.0,0.33287389]
[1733429114603,0.00117716,98565.0,98564.0,0.23287389]
[1733429115018,0.00076437,98617.0,98579.0,0.302882]
[1733429115249,0.00076437,98617.0,98579.0,0.1]
[1733429115486,0.00232347,98580.0,98579.0,0.20069031]
[1733429115700,0.00232347,98580.0,98579.0,0.46657605]
[1733429115934,0.00076437,98637.0,98636.0,0.0939]
[1733429116189,0.0793,98638.0,98637.0,0.0939]
[1733429116407,0.07947669,98638.0,98637.0,0.0939]
[1733429117136,0.19333039,98638.0,98620.0,0.0939]
[1733429117383,0.19333039,98638.0,98636.0,0.0939]
[1733429117384,0.00076437,98637.0,98636.0,0.0939]
[1733429117631,0.09967605,98637.0,98636.0,0.0949]
[1733429117839,0.08127669,98638.0,98637.0,0.0939]
[1733429118494,0.00817669,98638.0,98637.0,0.0939]
[1733429118703,0.00817669,98638.0,98637.0,0.39633905]
[1733429118931,0.00617669,98638.0,98637.0,0.0939]
[1733429119446,0.01017669,98638.0,98637.0,0.39633905]
[1733429119669,0.01017669,98638.0,98637.0,0.49633905]
[1733429119927,0.0017304,98640.0,98639.0,0.1939]
[1733429120138,0.0017346,98670.0,98659.0,0.396618]
[1733429120352,0.0017346,98670.0,98659.0,0.54629405]
[1733429120572,0.0017346,98670.0,98659.0,0.39629405]
[1733429120821,0.0017346,98670.0,98659.0,0.19357605]
[1733429121752,0.0017346,98670.0,98659.0,0.09891327]
[1733429122005,0.0017346,98670.0,98669.0,0.0939]
[1733429122237,0.0017346,98670.0,98669.0,0.19357605]
[1733429122471,0.0017346,98670.0,98669.0,0.29458911]
[1733429122696,0.0017346,98670.0,98669.0,0.19357605]
[1733429122906,0.0017346,98670.0,98669.0,0.19458923]
[1733429123399,0.00191112,98670.0,98669.0,0.19458923]
[1733429123625,0.00191112,98670.0,98669.0,0.29458905]
[1733429123868,0.0017398,98710.0,98689.0,0.296556]
[1733429124092,0.0017398,98710.0,98699.0,0.296536]
[1733429124359,0.0017398,98710.0,98699.0,0.19357605]
[1733429124570,0.00232069,98700.0,98699.0,0.09491291]
[1733429124856,0.00232069,98700.0,98699.0,0.39722496]
[1733429125104,0.00232069,98700.0,98699.0,0.0939]
[1733429125556,0.00232069,98700.0,98699.0,0.39621205]
[1733429125809,0.09897069,98700.0,98699.0,0.39621205]
[1733429126260,0.09897069,98700.0,98699.0,0.49621205]
[1733429126701,0.09897069,98700.0,98699.0,0.77121205]
[1733429126951,0.0017398,98710.0,98699.0,0.77121205]
[1733429126952,0.0017398,98710.0,98709.0,0.496515]
[1733429127200,0.0017398,98710.0,98709.0,0.74619105]
[1733429127201,0.00191621,98710.0,98709.0,0.74619105]
[1733429127444,0.0017324,98740.0,98729.0,0.2939]
[1733429127677,0.0017324,98740.0,98729.0,0.74615005]
[1733429127910,0.0017324,98740.0,98729.0,0.49615005]
[1733429129246,0.0017324,98740.0,98729.0,0.39615005]
[1733429130749,0.0017324,98740.0,98729.0,0.49615005]
[1733429131399,0.0017324,98740.0,98729.0,0.64615005]
[1733429131608,0.0017324,98740.0,98729.0,0.76915005]
[1733429131821,0.0017324,98740.0,98729.0,0.64615005]
[1733429132947,0.0751,98738.0,98729.0,0.0939]
[1733429133370,0.0751,98738.0,98729.0,0.19458872]
[1733429133604,0.0017324,98740.0,98729.0,0.19458872]
[1733429134137,0.0114618,98741.0,98739.0,0.296454]
[1733429134339,0.0114618,98741.0,98740.0,0.19458847]
[1733429134767,0.0114618,98741.0,98740.0,0.29458847]
[1733429134971,0.0114618,98741.0,98740.0,0.29357605]
[1733429135176,0.0114618,98741.0,98740.0,0.54357605]
[1733429135345,0.02,98746.0,98745.0,0.3439]
[1733429135547,0.02017635,98746.0,98745.0,0.54357605]
[1733429135773,7.5e-07,98750.0,98749.0,0.2939]
[1733429136126,0.02,98847.0,98759.0,0.475513]
[1733429136127,0.0816,98806.0,98759.0,0.475513]
[1733429136315,4e-07,98760.0,98759.0,0.74608905]
[1733429136738,4e-07,98760.0,98759.0,0.74569299]
[1733429136952,0.00303507,98837.0,98759.0,0.74569299]
[1733429136953,0.001535,98800.0,98799.0,0.296331]
[1733429137173,0.00173,98830.0,98829.0,0.296269]
[1733429137436,0.00173,98830.0,98829.0,0.39594505]
[1733429137859,0.00173,98830.0,98829.0,0.49594505]
[1733429138073,0.00173,98830.0,98829.0,0.39594505]
[1733429138295,0.00231843,98830.0,98829.0,0.49594505]
[1733429138742,0.00231843,98830.0,98829.0,0.59594505]
[1733429138988,0.0017352,98850.0,98838.0,0.296251]
[1733429139196,0.00017677,98839.0,98838.0,0.74592705]
[1733429139438,7.7e-07,98839.0,98838.0,0.74592705]
[1733429140168,0.0017352,98850.0,98849.0,0.546228]
[1733429140389,0.0017352,98850.0,98849.0,0.669228]
[1733429140598,0.0017352,98850.0,98849.0,0.76890405]
[1733429140822,0.0017352,98850.0,98849.0,0.64590405]
[1733429141065,0.0017352,98850.0,98849.0,0.39590405]
[1733429141283,0.0833352,98850.0,98849.0,0.0939]
[1733429141544,0.0833352,98850.0,98849.0,0.19357605]
[1733429141982,0.0833352,98850.0,98849.0,0.0939]
[1733429142893,0.0833352,98850.0,98838.0,0.00017637]
[1733429143106,0.10094055,98849.0,98838.0,0.00017637]
[1733429143314,0.00126461,98848.0,98838.0,0.00017637]
[1733429143527,0.09967605,98847.0,98838.0,0.00017637]
[1733429143742,0.0833352,98850.0,98838.0,0.00017637]